fUST/lending_fUST_20240902
["ID","MTS","AMOUNT","RATE_DAILY","PERIOD"]
[336850496,1725210639274,-500.0,0.00024657,2]
[336850497,1725210639283,-500.0,0.00024657,2]
[336850498,1725210639293,-502.75961608,0.00024657,2]
[336850499,1725210639302,-500.0,0.00024657,2]
[336850500,1725210639312,-758.38,0.00024657,2]
[336850501,1725210639321,-588.53,0.00024657,2]
[336850502,1725210639331,-500.0,0.00024657,2]
[336850503,1725210639340,-500.0,0.00024657,2]
[336850504,1725210639355,-500.0,0.00024657,2]
[336850505,1725210639365,-243.6213802,0.00024657,2]
[336850540,1725210640339,-256.3786198,0.00024657,2]
[336850542,1725210640349,-265.25486729,0.00024657,2]
[336850544,1725210640359,-500.0,0.00024657,2]
[336850546,1725210640368,-500.0,0.00024657,2]
[336850548,1725210640378,-515.82330749,0.00024657,2]
[336850550,1725210640388,-500.0,0.00024657,2]
[336850552,1725210640397,-500.0,0.00024657,2]
[336850554,1725210640407,-500.0,0.00024657,2]
[336850556,1725210640416,-500.0,0.00024657,2]
[336850558,1725210640426,-665.46,0.00024657,2]
[336850560,1725210640436,-500.0,0.00024657,2]
[336850562,1725210640446,-500.0,0.00024657,2]
[336850564,1725210640455,-500.0,0.00024657,2]
[336850566,1725210640465,-500.0,0.00024657,2]
[336850568,1725210640475,-546.66,0.00024657,2]
[336850570,1725210640485,-500.0,0.00024657,2]
[336850572,1725210640494,-245.25807954,0.00024657,2]
[336850574,1725210640504,-500.0,0.00024657,2]
[336850576,1725210640513,-500.0,0.00024657,2]
[336850578,1725210640524,-500.0,0.00024657,2]
[336850580,1725210640533,-500.0,0.00024657,2]
[336850582,1725210640543,-500.0,0.00024657,2]
[336850585,1725210640553,-500.0,0.00024657,2]
[336850587,1725210640564,-500.0,0.00024657,2]
[336850589,1725210640573,-966.28,0.00024657,2]
[336850591,1725210640583,-500.0,0.00024657,2]
[336850593,1725210640592,-500.0,0.00024657,2]
[336850595,1725210640602,-500.0,0.00024657,2]
[336850597,1725210640611,-500.0,0.00024657,2]
[336850599,1725210640621,-500.0,0.00024657,2]
[336850601,1725210640630,-565.48646795,0.00024657,2]
[336850603,1725210640640,-500.0,0.00024657,2]
[336850605,1725210640650,-500.0,0.00024657,2]
[336850607,1725210640661,-500.0,0.00024657,2]
[336850609,1725210640671,-500.0,0.00024657,2]
[336850611,1725210640680,-500.0,0.00024657,2]
[336850613,1725210640690,-500.0,0.00024657,2]
[336850615,1725210640700,-763.66,0.00024657,2]
[336850617,1725210640710,-500.0,0.00024657,2]
[336850619,1725210640720,-500.0,0.00024657,2]
[336850621,1725210640729,-500.0,0.00024657,2]
[336850623,1725210640739,-500.0,0.00024657,2]
[336850625,1725210640749,-500.0,0.00024657,2]
[336850628,1725210640759,-500.0,0.00024657,2]
[336850630,1725210640769,-2828.26,0.00024657,2]
[336850632,1725210640778,-500.0,0.00024657,2]
[336850634,1725210640788,-500.0,0.00024657,2]
[336850636,1725210640798,-500.0,0.00024657,2]
[336850638,1725210640808,-500.0,0.00024657,2]
[336850640,1725210640818,-500.0,0.00024657,2]
[336850642,1725210640827,-500.0,0.00024657,2]
[336850644,1725210640837,-500.0,0.00024657,2]
[336850646,1725210640847,-500.0,0.00024657,2]
[336850648,1725210640856,-500.0,0.00024657,2]
[336850650,1725210640867,-500.0,0.00024657,2]
[336850652,1725210640876,-500.0,0.00024657,2]
[336850654,1725210640886,-500.0,0.00024657,2]
[336850656,1725210640895,-500.0,0.00024657,2]
[336850658,1725210640905,-500.0,0.00024657,2]
[336850660,1725210640916,-500.0,0.00024657,2]
[336850662,1725210640926,-500.0,0.00024657,2]
[336850664,1725210640938,-500.0,0.00024657,2]
[336850666,1725210640949,-500.0,0.00024657,2]
[336850667,1725210640959,-1094.39,0.00024657,2]
[336850668,1725210640970,-501.813284,0.00024657,2]
[336850670,1725210640983,-500.0,0.00024657,2]
[336850671,1725210640993,-251.9472781,0.00024657,2]
[336850672,1725210641004,-500.0,0.00024657,2]
[336850673,1725210641016,-500.0,0.00024657,2]
[336850674,1725210641025,-500.0,0.00024657,2]
[336850675,1725210641035,-582.92,0.00024657,2]
[336850676,1725210641045,-500.0,0.00024657,2]
[336850677,1725210641056,-500.0,0.00024657,2]
[336850678,1725210641065,-500.0,0.00024657,2]
[336850679,1725210641075,-491.15543517,0.00024657,2]
[336850680,1725210641084,-500.0,0.00024657,2]
[336850681,1725210641095,-500.0,0.00024657,2]
[336850682,1725210641105,-500.0,0.00024657,2]
[336850683,1725210641115,-500.0,0.00024657,2]
[336850684,1725210641125,-500.0,0.00024657,2]
[336850685,1725210641135,-636.32,0.00024657,2]
[336850686,1725210641145,-500.0,0.00024657,2]
[336850687,1725210641156,-572.09,0.00024657,2]
[336850688,1725210641166,-500.0,0.00024657,2]
[336850689,1725210641176,-206.64923251,0.00024657,2]
[336850690,1725210641186,-500.0,0.00024657,2]
[336850691,1725210641195,-500.0,0.00024657,2]
[336850692,1725210641204,-500.0,0.00024657,2]
[336850693,1725210641213,-500.0,0.00024657,2]
[336850694,1725210641223,-500.0,0.00024657,2]
[336850695,1725210641232,-611.16,0.00024657,2]
[336850696,1725210641241,-504.71622997,0.00024657,2]
[336850697,1725210641251,-500.0,0.00024657,2]
[336850698,1725210641261,-500.0,0.00024657,2]
[336850699,1725210641271,-500.0,0.00024657,2]
[336850700,1725210641281,-500.0,0.00024657,2]
[336850701,1725210641291,-500.0,0.00024657,2]
[336850702,1725210641300,-500.0,0.00024657,2]
[336850703,1725210641311,-500.0,0.00024657,2]
[336850704,1725210641321,-500.0,0.00024657,2]
[336850705,1725210641332,-500.0,0.00024657,2]
[336850706,1725210641342,-524.37575311,0.00024657,2]
[336850707,1725210641353,-500.0,0.00024657,2]
[336850708,1725210641363,-500.0,0.00024657,2]
[336850709,1725210641372,-501.39913101,0.00024657,2]
[336850710,1725210641382,-500.0,0.00024657,2]
[336850711,1725210641391,-500.0,0.00024657,2]
[336850712,1725210641400,-500.0,0.00024657,2]
[336850713,1725210641410,-544.46,0.00024657,2]
[336850714,1725210641605,-500.0,0.00024657,2]
[336850715,1725210641615,-500.0,0.00024657,2]
[336850716,1725210641624,-500.0,0.00024657,2]
[336850717,1725210641634,-500.0,0.00024657,2]
[336850718,1725210641644,-664.06,0.00024657,2]
[336850719,1725210641653,-500.0,0.00024657,2]
[336850720,1725210641663,-500.0,0.00024657,2]
[336850721,1725210641672,-1101.92,0.00024657,2]
[336850722,1725210641684,-589.24,0.00024657,2]
[336850723,1725210641694,-500.0,0.00024657,2]
[336850724,1725210641704,-500.0,0.00024657,2]
[336850725,1725210641714,-505.55047737,0.00024657,2]
[336850726,1725210641723,-500.0,0.00024657,2]
[336850727,1725210641732,-863.84,0.00024657,2]
[336850728,1725210641742,-500.0,0.00024657,2]
[336850729,1725210641752,-500.0,0.00024657,2]
[336850730,1725210641761,-629.73,0.00024657,2]
[336850731,1725210641771,-500.0,0.00024657,2]
[336850732,1725210641780,-641.17,0.00024657,2]
[336850733,1725210641790,-500.0,0.00024657,2]
[336850734,1725210641799,-166.7240261,0.00024657,2]
[336850735,1725210641808,-500.0,0.00024657,2]
[336850736,1725210641818,-500.0,0.00024657,2]
[336850737,1725210641827,-500.0,0.00024657,2]
[336850738,1725210641837,-500.0,0.00024657,2]
[336850739,1725210641846,-500.0,0.00024657,2]
[336850740,1725210641856,-501.51833889,0.00024657,2]
[336850741,1725210641866,-536.85408094,0.00024657,2]
[336850742,1725210641875,-628.65773662,0.00024657,2]
[336850743,1725210641884,-500.0,0.00024657,2]
[336850744,1725210641894,-688.67,0.00024657,2]
[336850745,1725210641903,-500.0,0.00024657,2]
[336850746,1725210641912,-1686.99,0.00024657,2]
[336850747,1725210641921,-500.0,0.00024657,2]
[336850748,1725210641931,-500.0,0.00024657,2]
[336850749,1725210641940,-500.0,0.00024657,2]
[336850750,1725210641950,-500.0,0.00024657,2]
[336850751,1725210641960,-1247.67,0.00024657,2]
[336850752,1725210641969,-500.0,0.00024657,2]
[336850753,1725210641982,-305.46657579,0.00024657,2]
[336850754,1725210641993,-500.0,0.00024657,2]
[336850755,1725210642002,-500.0,0.00024657,2]
[336850756,1725210642012,-500.0,0.00024657,2]
[336850757,1725210642022,-2070.19,0.00024657,2]
[336850758,1725210642032,-500.0,0.00024657,2]
[336850759,1725210642041,-500.0,0.00024657,2]
[336850760,1725210642053,-500.0,0.00024657,2]
[336850761,1725210642062,-500.0,0.00024657,2]
[336850762,1725210642072,-629.45940246,0.00024657,2]
[336850763,1725210642082,-500.0,0.00024657,2]
[336850764,1725210642091,-862.39,0.00024657,2]
[336850765,1725210642101,-500.0,0.00024657,2]
[336850766,1725210642111,-500.0,0.00024657,2]
[336850767,1725210642121,-500.0,0.00024657,2]
[336850768,1725210642130,-500.0,0.00024657,2]
[336850769,1725210642140,-500.0,0.00024657,2]
[336850770,1725210642149,-500.0,0.00024657,2]
[336850771,1725210642159,-500.0,0.00024657,2]
[336850772,1725210642169,-500.0,0.00024657,2]
[336850773,1725210642178,-504.79594028,0.00024657,2]
[336850774,1725210642187,-1065.25,0.00024657,2]
[336850775,1725210642196,-500.0,0.00024657,2]
[336850776,1725210642206,-500.0,0.00024657,2]
[336850777,1725210642215,-500.0,0.00024657,2]
[336850778,1725210642226,-783.78,0.00024657,2]
[336850779,1725210642235,-1367.81,0.00024657,2]
[336850780,1725210642245,-1092.56,0.00024657,2]
[336850781,1725210642255,-500.0,0.00024657,2]
[336850782,1725210642264,-500.0,0.00024657,2]
[336850783,1725210642274,-500.0,0.00024657,2]
[336850784,1725210642284,-754.0,0.00024657,2]
[336850785,1725210642293,-500.0,0.00024657,2]
[336850786,1725210642303,-561.64,0.00024657,2]
[336850787,1725210642313,-500.0,0.00024657,2]
[336850788,1725210642323,-500.0,0.00024657,2]
[336850789,1725210642332,-1159.9,0.00024657,2]
[336850790,1725210642342,-500.0,0.00024657,2]
[336850791,1725210642352,-1249.91,0.00024657,2]
[336850792,1725210642362,-500.0,0.00024657,2]
[336850793,1725210642372,-1160.02,0.00024657,2]
[336850794,1725210642383,-500.0,0.00024657,2]
[336850795,1725210642393,-500.0,0.00024657,2]
[336850796,1725210642403,-432.13686531,0.00024657,2]
[336850797,1725210642412,-900.11,0.00024657,2]
[336850798,1725210642422,-500.0,0.00024657,2]
[336850799,1725210642432,-687.14,0.00024657,2]
[336850800,1725210642441,-500.0,0.00024657,2]
[336850801,1725210642451,-500.0,0.00024657,2]
[336850802,1725210642460,-500.0,0.00024657,2]
[336850803,1725210642470,-500.0,0.00024657,2]
[336850804,1725210642480,-500.0,0.00024657,2]
[336850805,1725210642491,-500.0,0.00024657,2]
[336850806,1725210642503,-500.0,0.00024657,2]
[336850807,1725210642512,-500.0,0.00024657,2]
[336850808,1725210642524,-500.0,0.00024657,2]
[336850809,1725210642535,-500.0,0.00024657,2]
[336850810,1725210642545,-500.0,0.00024657,2]
[336850811,1725210642554,-500.0,0.00024657,2]
[336850812,1725210642564,-500.0,0.00024657,2]
[336850813,1725210642573,-392.50524189,0.00024657,2]
[336850814,1725210642583,-500.0,0.00024657,2]
[336850815,1725210642592,-500.0,0.00024657,2]
[336850816,1725210642602,-545.76850301,0.00024657,2]
[336850817,1725210642613,-500.0,0.00024657,2]
[336850818,1725210642623,-575.72,0.00024657,2]
[336850819,1725210642633,-500.0,0.00024657,2]
[336850820,1725210642644,-500.0,0.00024657,2]
[336850821,1725210642655,-500.0,0.00024657,2]
[336850822,1725210642665,-500.0,0.00024657,2]
[336850823,1725210642674,-500.0,0.00024657,2]
[336850824,1725210642684,-1491.44,0.00024657,2]
[336850825,1725210642693,-500.0,0.00024657,2]
[336850826,1725210642702,-1991.74,0.00024657,2]
[336850827,1725210642711,-572.8584381,0.00024657,2]
[336850828,1725210642721,-500.0,0.00024657,2]
[336850829,1725210642731,-573.65,0.00024657,2]
[336850830,1725210642740,-500.0,0.00024657,2]
[336850831,1725210642751,-500.0,0.00024657,2]
[336850833,1725210642760,-500.0,0.00024657,2]
[336850835,1725210642770,-1764.14,0.00024657,2]
[336850837,1725210642779,-500.0,0.00024657,2]
[336850838,1725210642789,-500.0,0.00024657,2]
[336850839,1725210642798,-500.0,0.00024657,2]
[336850840,1725210642808,-1358.22,0.00024657,2]
[336850841,1725210642817,-500.0,0.00024657,2]
[336850842,1725210642827,-500.0,0.00024657,2]
[336850843,1725210642838,-500.0,0.00024657,2]
[336850844,1725210642850,-500.0,0.00024657,2]
[336850845,1725210642860,-622.68,0.00024657,2]
[336850846,1725210642870,-500.0,0.00024657,2]
[336850847,1725210642880,-1587.84,0.00024657,2]
[336850848,1725210642890,-505.40270031,0.00024657,2]
[336850849,1725210642900,-869.14,0.00024657,2]
[336850850,1725210642909,-500.0,0.00024657,2]
[336850851,1725210642919,-966.73,0.00024657,2]
[336850852,1725210642929,-500.0,0.00024657,2]
[336850853,1725210642939,-500.0,0.00024657,2]
[336850854,1725210642949,-500.0,0.00024657,2]
[336850855,1725210642958,-500.0,0.00024657,2]
[336850856,1725210642969,-2800.96,0.00024657,2]
[336850857,1725210642983,-3015.25,0.00024657,2]
[336850858,1725210642994,-556.61,0.00024657,2]
[336850859,1725210643003,-500.0,0.00024657,2]
[336850860,1725210643015,-500.0,0.00024657,2]
[336850861,1725210643024,-500.0,0.00024657,2]
[336850862,1725210643035,-501.38547877,0.00024657,2]
[336850863,1725210643044,-500.0,0.00024657,2]
[336850864,1725210643058,-735.26,0.00024657,2]
[336850865,1725210643068,-500.0,0.00024657,2]
[336850866,1725210643078,-1432.77,0.00024657,2]
[336850867,1725210643087,-500.0,0.00024657,2]
[336850868,1725210643097,-1353.46,0.00024657,2]
[336850869,1725210643107,-505.03,0.00024657,2]
[336850870,1725210643116,-500.0,0.00024657,2]
[336850871,1725210643126,-500.0,0.00024657,2]
[336850872,1725210643135,-500.0,0.00024657,2]
[336850873,1725210643146,-500.0,0.00024657,2]
[336850874,1725210643155,-500.0,0.00024657,2]
[336850875,1725210643165,-500.0,0.00024657,2]
[336850876,1725210643174,-500.0,0.00024657,2]
[336850877,1725210643183,-548.33591432,0.00024657,2]
[336850878,1725210643193,-641.06249764,0.00024657,2]
[336850879,1725210643202,-500.0,0.00024657,2]
[336850881,1725210643211,-500.0,0.00024657,2]
[336850883,1725210643221,-500.0,0.00024657,2]
[336850885,1725210643230,-13047.88,0.00024657,2]
[336850887,1725210643239,-852.1,0.00024657,2]
[336850889,1725210643248,-449.62172856,0.00024657,2]
[336850890,1725210643257,-500.0,0.00024657,2]
[336850891,1725210643267,-500.0,0.00024657,2]
[336850892,1725210643276,-500.0,0.00024657,2]
[336850893,1725210643285,-500.0,0.00024657,2]
[336850894,1725210643295,-500.0,0.00024657,2]
[336850895,1725210643304,-2191.99,0.00024657,2]
[336850896,1725210643313,-500.0,0.00024657,2]
[336850897,1725210643323,-557.34,0.00024657,2]
[336850898,1725210643332,-500.0,0.00024657,2]
[336850899,1725210643342,-500.0,0.00024657,2]
[336850900,1725210643351,-1963.65,0.00024657,2]
[336850901,1725210643361,-500.0,0.00024657,2]
[336850902,1725210643370,-500.0,0.00024657,2]
[336850903,1725210643379,-500.0,0.00024657,2]
[336850904,1725210643389,-500.0,0.00024657,2]
[336850905,1725210643398,-1521.09,0.00024657,2]
[336850906,1725210643407,-500.0,0.00024657,2]
[336850907,1725210643416,-500.0,0.00024657,2]
[336850908,1725210643427,-500.0,0.00024657,2]
[336850909,1725210643436,-1275.42,0.00024657,2]
[336850910,1725210643446,-500.0,0.00024657,2]
[336850911,1725210643455,-500.0,0.00024657,2]
[336850912,1725210643464,-709.71,0.00024657,2]
[336850913,1725210643473,-500.0,0.00024657,2]
[336850914,1725210643483,-655.97,0.00024657,2]
[336850915,1725210643492,-500.0,0.00024657,2]
[336850916,1725210643501,-500.0,0.00024657,2]
[336850917,1725210643511,-636.38749605,0.00024657,2]
[336850918,1725210643521,-587.09,0.00024657,2]
[336850919,1725210643530,-500.0,0.00024657,2]
[336850920,1725210643539,-500.0,0.00024657,2]
[336850921,1725210643548,-500.0,0.00024657,2]
[336850922,1725210643558,-2547.19,0.00024657,2]
[336850923,1725210643567,-269.24649168,0.00024657,2]
[336850924,1725210643577,-500.0,0.00024657,2]
[336850925,1725210643587,-1430.85,0.00024657,2]
[336850926,1725210643596,-500.0,0.00024657,2]
[336850927,1725210643606,-500.0,0.00024657,2]
[336850928,1725210643615,-500.0,0.00024657,2]
[336850929,1725210643627,-981.97,0.00024657,2]
[336850930,1725210643637,-508.37158568,0.00024657,2]
[336850931,1725210643647,-500.0,0.00024657,2]
[336850932,1725210643656,-1120.95,0.00024657,2]
[336850933,1725210643665,-500.0,0.00024657,4]
[336850934,1725210643675,-583.22,0.00024657,2]
[336850935,1725210643685,-500.0,0.00024657,2]
[336850936,1725210643695,-1170.33,0.00024657,2]
[336850937,1725210643704,-500.0,0.00024657,2]
[336850938,1725210643714,-417.32387967,0.00024657,2]
[336850939,1725210643723,-1139.71,0.00024657,2]
[336850940,1725210643732,-1374.81,0.00024657,2]
[336850941,1725210643742,-500.0,0.00024657,2]
[336850942,1725210643751,-500.0,0.00024657,2]
[336850943,1725210643761,-500.0,0.00024657,2]
[336850944,1725210643770,-500.0,0.00024657,2]
[336850945,1725210643780,-500.0,0.00024657,2]
[336850946,1725210643789,-1580.84,0.00024657,2]
[336850947,1725210643799,-953.67,0.00024657,2]
[336850948,1725210643808,-500.0,0.00024657,2]
[336850949,1725210643818,-1449.85,0.00024657,2]
[336850950,1725210643828,-523.57,0.00024657,2]
[336850951,1725210643837,-1161.73,0.00024657,2]
[336850952,1725210643847,-500.0,0.00024657,2]
[336850953,1725210643857,-2368.92,0.00024657,2]
[336850954,1725210643867,-500.0,0.00024657,2]
[336850955,1725210643876,-500.0,0.00024657,2]
[336850956,1725210643885,-500.0,0.00024657,2]
[336850957,1725210643895,-500.0,0.00024657,2]
[336850958,1725210643904,-927.02,0.00024657,2]
[336850959,1725210643914,-500.93254474,0.00024657,2]
[336850960,1725210643923,-548.26,0.00024657,2]
[336850961,1725210643933,-501.18504295,0.00024657,2]
[336850962,1725210643942,-500.0,0.00024657,2]
[336850963,1725210643951,-502.07144363,0.00024657,2]
[336850964,1725210643961,-500.0,0.00024657,2]
[336850965,1725210643974,-500.0,0.00024657,2]
[336850966,1725210643983,-1099.02,0.00024657,2]
[336850967,1725210643992,-500.0,0.00024657,2]
[336850968,1725210644002,-568.25,0.00024657,2]
[336850969,1725210644014,-1057.35,0.00024657,2]
[336850970,1725210644025,-500.0,0.00024657,2]
[336850971,1725210644035,-500.0,0.00024657,2]
[336850972,1725210644047,-500.0,0.00024657,2]
[336850973,1725210644057,-561.85,0.00024657,2]
[336850974,1725210644066,-6376.45,0.00024657,2]
[336850975,1725210644076,-500.0,0.00024657,2]
[336850976,1725210644086,-500.0,0.00024657,2]
[336850977,1725210644095,-3427.14,0.00024657,2]
[336850978,1725210644105,-897.55,0.00024657,2]
[336850979,1725210644114,-1502.9,0.00024657,2]
[336850980,1725210644123,-500.0,0.00024657,2]
[336850981,1725210644133,-4434.51,0.00024657,2]
[336850982,1725210644142,-500.0,0.00024657,2]
[336850983,1725210644151,-2248.35,0.00024657,2]
[336850984,1725210644161,-830.08,0.00024657,2]
[336850985,1725210644171,-502.77940951,0.00024657,2]
[336850986,1725210644181,-1633.18,0.00024657,2]
[336850987,1725210644193,-500.0,0.00024657,2]
[336850988,1725210644204,-500.0,0.00024657,2]
[336850989,1725210644214,-500.0,0.00024657,2]
[336850990,1725210644223,-1663.06,0.00024657,2]
[336850991,1725210644233,-254.72586985,0.00024657,2]
[336850992,1725210644994,-245.27413015,0.00024657,2]
[336850993,1725210645004,-1107.84,0.00024657,2]
[336850994,1725210645015,-500.0,0.00024657,2]
[336850995,1725210645025,-570.86907341,0.00024657,2]
[336850996,1725210645034,-500.0,0.00024657,2]
[336850997,1725210645044,-1631.56,0.00024657,2]
[336850998,1725210645054,-100.88861758,0.00024657,2]
[336851012,1725210816336,240.600646,0.00014247,2]
[336851013,1725210929224,1000.0,0.00025,120]
[336851014,1725211128143,315.35351058,0.0002,2]
[336851016,1725211328235,164.200346,0.00014247,2]
[336851043,1725211718913,607.12267076,0.00014,4]
[336851044,1725211722685,6780.79945145,0.0001,2]
[336851049,1725211826909,236.78063,0.00014247,2]
[336851061,1725211832418,-236.78063,0.00020707,2]
[336851063,1725211832437,-209.316044,0.00021989,2]
[336851064,1725211832453,-329.34567,0.00022172,2]
[336851065,1725211832463,-250.0,0.00022363,2]
[336851066,1725211832472,-250.0,0.00022425,2]
[336851067,1725211832482,-250.0,0.00022486,2]
[336851068,1725211832493,-1.64881341,0.00022548,2]
[336851071,1725211838481,-248.35118659,0.00022548,2]
[336851072,1725211838491,-300.0,0.00022598,2]
[336851073,1725211838501,-9095.29095369,0.00022599,2]
[336851074,1725211838519,-15804.70904631,0.00022599,2]
[336851075,1725211838530,-250.0,0.00022609,2]
[336851076,1725211838540,-250.0,0.0002267,2]
[336851077,1725211838550,-250.0,0.00022732,2]
[336851078,1725211838560,-250.0,0.00022793,2]
[336851079,1725211838569,-250.0,0.00022854,2]
[336851080,1725211838579,-171.998839,0.00022912,2]
[336851081,1725211838589,-250.0,0.00022916,2]
[336851082,1725211838598,-250.0,0.00022977,2]
[336851083,1725211838608,-250.0,0.00023038,2]
[336851084,1725211838618,-250.0,0.000231,2]
[336851085,1725211838627,-250.0,0.00023161,2]
[336851086,1725211838637,-250.0,0.00023222,2]
[336851087,1725211838646,-250.0,0.00023284,2]
[336851088,1725211838656,-250.0,0.00023345,2]
[336851089,1725211838666,-250.0,0.00023406,2]
[336851090,1725211838676,-250.0,0.00023468,2]
[336851091,1725211838686,-250.0,0.00023529,2]
[336851092,1725211838696,-153.0,0.00023641,2]
[336851093,1725211838705,-153.0,0.00023641,2]
[336851094,1725211838714,-4110.58764767,0.00023696,2]
[336851095,1725211838724,-417.142381,0.00023836,2]
[336851096,1725211838734,-15167.85628335,0.000239,2]
[336851097,1725211838743,-1000.0,0.00024,24]
[336851098,1725211838755,-52317.09065681,0.00024,2]
[336851099,1725211838766,-3269.08648733,0.00024457,2]
[336851100,1725211838775,-3269.08648733,0.00024482,2]
[336851101,1725211838785,-32441.95088859,0.0002449,2]
[336851102,1725211838794,-271.976302,0.000245,2]
[336851103,1725211838804,-3269.08648733,0.00024507,2]
[336851104,1725211838813,-153.0,0.00024512,2]
[336851105,1725211838822,-20422.2679876,0.00024527,3]
[336851106,1725211838832,-3269.08648733,0.00024532,2]
[336851107,1725211838841,-40844.5359752,0.00024537,3]
[336851108,1725211838850,-199.11305328,0.00024546,2]
[336851109,1725211838859,-500.0,0.00024546,2]
[336851110,1725211838868,-500.0,0.00024546,2]
[336851111,1725211838877,-500.0,0.00024546,2]
[336851112,1725211838887,-500.0,0.00024546,2]
[336851113,1725211838896,-218.66188796,0.00024546,2]
[336851114,1725211838905,-39667.18857852,0.00024547,3]
[336851115,1725211838915,-40844.5359752,0.00024547,3]
[336851116,1725211838924,-12727.29625715,0.00024557,11]
[336851117,1725211838933,-32456.88582479,0.00024557,2]
[336851118,1725211838946,-62858.63521292,0.00024557,2]
[336851119,1725211838956,-3269.08648733,0.00024557,2]
[336851120,1725211838965,-1689.17386653,0.00024557,2]
[336851121,1725211838975,-150.112233,0.000246,4]
[336851122,1725211838984,-150.112233,0.000246,4]
[336851123,1725211838994,-20422.2679876,0.00024626,3]
[336851124,1725211839005,-20422.2679876,0.00024627,3]
[336851125,1725211839015,-23478.06667414,0.00024636,11]
[336851126,1725211839024,-40844.5359752,0.00024637,3]
[336851127,1725211839034,-40844.5359752,0.00024647,3]
[336851128,1725211839043,-1837.1121961,0.00024649,2]
[336851129,1725211839052,-500.0,0.00024657,2]
[336851130,1725211839061,-500.0,0.00024657,2]
[336851131,1725211839071,-500.0,0.00024657,2]
[336851132,1725211839080,-500.0,0.00024657,2]
[336851133,1725211839090,-500.0,0.00024657,2]
[336851134,1725211839099,-500.0,0.00024657,2]
[336851135,1725211839109,-500.0,0.00024657,2]
[336851136,1725211839118,-501.82263966,0.00024657,2]
[336851137,1725211839128,-500.0,0.00024657,2]
[336851138,1725211839138,-500.0,0.00024657,2]
[336851139,1725211839148,-500.0,0.00024657,2]
[336851140,1725211839159,-500.0,0.00024657,2]
[336851141,1725211839169,-500.0,0.00024657,2]
[336851142,1725211839180,-500.0,0.00024657,2]
[336851143,1725211839189,-500.0,0.00024657,2]
[336851144,1725211839198,-500.0,0.00024657,2]
[336851145,1725211839207,-500.0,0.00024657,2]
[336851146,1725211839216,-500.0,0.00024657,2]
[336851147,1725211839226,-842.71,0.00024657,2]
[336851148,1725211839235,-500.0,0.00024657,2]
[336851149,1725211839244,-500.0,0.00024657,2]
[336851150,1725211839256,-501.4242493,0.00024657,2]
[336851151,1725211839265,-500.0,0.00024657,2]
[336851152,1725211839275,-500.0,0.00024657,2]
[336851153,1725211839284,-500.0,0.00024657,2]
[336851154,1725211839293,-500.0,0.00024657,2]
[336851155,1725211839302,-500.0,0.00024657,2]
[336851156,1725211839312,-500.0,0.00024657,2]
[336851157,1725211839321,-362.00424429,0.00024657,2]
[336851158,1725211839332,-500.0,0.00024657,2]
[336851159,1725211839344,-500.0,0.00024657,2]
[336851160,1725211839356,-385.28181826,0.00024657,2]